Cogmind - Beta 13 @@@ ROGUE MODE // 2024.05.12 @ 18:17:12 Player: puppuppit Result: Destroyed by G-47 Trooper with Particle Gun Performance ------------- Evolutions (3) 1500 Regions Visited (10) 2000 Robots Destroyed (254) 1270 Value Destroyed (10106) 10106 Prototype IDs (37) 740 Alien Tech Used (0) 0 Bonus (7504) 7504 TOTAL SCORE: 23120 Bonus ------- Triggered High Security 1000 High Alert Combat Kills 4850 Follower Combat Kills 1728 Entered Garrisons 400 Aligned with FarCom 300 Friendly Fire -774 Cogmind --------- Core Integrity 0/700 Matter 186/300 Energy 98/100 System Corruption 4% Temperature Cool (11) Movement Hovering (56) Location -7/Storage Parts ------- > --- POWER (1) -------- (None) > --- PROPULSION (4) --- Hover Unit Improved Hover Unit Cooled VTOL Module > --- UTILITY (6) ------ Medium Storage Unit Improved Armor Integrity Analyzer Hacking Suite Hacking Suite System Shield > --- WEAPON (2) ------- Lance > --- INVENTORY (10) --- Micro Fission Core Advanced Cooling System Matter Compressor (250) Advanced Phase Shifter Railgun AWS/Gauss Scatter Rocket Array Micro-nuke Launcher Peak State ------------ > --- POWER ------------ Enhanced Nuclear Core > --- PROPULSION ------- Nuclear Pulse Array Nuclear Pulse Array > --- UTILITY ---------- Medium Storage Unit Core Analyzer Core Analyzer Armor Integrity Analyzer Improved Transmission Jammer Hacking Suite > --- WEAPON ----------- KE Penetrator Lance > --- INVENTORY -------- Micro Nuclear Core Xenon Bombardment Thruster Advanced Cooling System Propulsion Shielding Recalibrator Recalibrator AWS/Gauss Enhanced Gauss Cannon Rocket Launcher [Rating: 67] Favorites ----------- Power Enhanced Nuclear Core Engine Ion Engine Power Core Enhanced Nuclear Core Propulsion Airjet Wheel Wheel Hover Unit Airjet Flight Unit VTOL Module Utility Core Analyzer Device Advanced Weight Redist. System Storage Medium Storage Unit Processor Core Analyzer Hackware Hacking Suite Protection Propulsion Shielding Weapon Lance Energy Gun Small Laser Energy Cannon Matter Neutralizer Ballistic Gun Assault Rifle Ballistic Cannon Mini Assault Cannon Launcher Rocket Launcher Piercing Weapon Lance Build | -11 -10 -10 -10 -9 -8 -8 -7 -7 -7 -7 ------- Run | Yrd Mat Min Exi Min Mat Gar Fac Gar Fac Sto Slots Evolved 6 | . . . . . 4 . 2 . . . Power . | . . . . . . . . . . . Propulsion 2 | . . . . . 2 . . . . . Utility 4 | . . . . . 2 . 2 . . . Weapon . | . . . . . . . . . . . Parts Attached 275 | 9 6 6 2 . 28 43 88 35 34 24 Power 35 | 1 1 1 . . 3 7 11 7 4 . Engine 12 | 1 1 1 . . 3 3 2 . 1 . Core 23 | . . . . . . 4 9 7 3 . Reactor . | . . . . . . . . . . . Propulsion 65 | 3 2 2 . . 14 13 11 8 8 4 Treads . | . . . . . . . . . . . Leg . | . . . . . . . . . . . Wheel 7 | 3 2 2 . . . . . . . . Hover 31 | . . . . . 14 11 1 . 2 3 Flight 27 | . . . . . . 2 10 8 6 1 Utility 57 | 3 2 . 1 . 4 5 21 10 8 3 Device 21 | 1 . . . . . . 9 8 2 1 Storage 8 | 2 1 . 1 . 1 . 2 . 1 . Processor 9 | . 1 . . . 1 4 2 1 . . Hackware 13 | . . . . . 1 1 4 . 5 2 Protection 6 | . . . . . 1 . 4 1 . . Artifact . | . . . . . . . . . . . Weapon 118 | 2 1 3 1 . 7 18 45 10 14 17 Energy Gun 1 | 1 . . . . . . . . . . Energy Cannon 1 | . . . . . . . . 1 . . Ballistic Gun 33 | 1 1 2 1 . . 1 3 4 9 11 Ballistic Cannon 36 | . . 1 . . 4 10 19 2 . . Launcher 30 | . . . . . 3 6 12 1 4 4 Special Weapon . | . . . . . . . . . . . Impact Weapon . | . . . . . . . . . . . Slashing Weapon . | . . . . . . . . . . . Piercing Weapon 17 | . . . . . . 1 11 2 1 2 Special Melee Weapon . | . . . . . . . . . . . Unidentified Prototypes 7 | . . . . . 1 . 4 . 1 1 Parts Lost 32 | . . . . . 3 8 11 . 9 1 Power 3 | . . . . . . 2 . . 1 . Propulsion 19 | . . . . . 3 5 5 . 6 . Utility 6 | . . . . . . . 4 . 1 1 Weapon 4 | . . . . . . 1 2 . 1 . Highest Loss Streak 5 | . . . . . 2 2 2 . 5 1 To Critical Strikes 1 | . . . . . . 1 . . . . Average Slot Usage (%) 88 | . 100 99 79 71 95 97 82 93 87 54 Engine 4 | . 14 13 4 . 7 3 . . . . Core 3 | . . . . . . 4 6 7 6 . Wheel 7 | . 28 28 28 28 2 . . . . . Hover 9 | . . . . . 33 32 . . . 5 Flight 9 | . . . . . . 1 17 28 24 3 Device 3 | . . . . . . . 6 13 9 3 Storage 9 | . 14 14 14 14 9 9 7 7 7 7 Processor 17 | . 13 14 14 14 18 25 16 12 15 11 Hackware 5 | . . . . . 8 . 9 7 12 20 Ballistic Gun 5 | . 21 19 13 14 2 . 1 4 5 . Ballistic Cannon 6 | . . 8 3 . 11 15 5 2 . . Piercing Weapon 2 | . . . . . . . 5 6 3 . Naked Turns . | . . . . . . . . . . . Heaviest Build 34 | 18 19 20 20 20 31 34 33 34 29 22 Greatest Support 38 | 26 20 20 20 20 32 38 35 29 30 13 Greatest Overweight (x) 3 | . 1 . . . 1 2 1 1 2 3 Average Overweight (x) . | . . . . . . . . . . 1 Largest Inventory Capacity 10 | 8 10 10 10 10 10 10 10 10 10 10 Average Capacity 9 | 6 9 10 10 10 10 10 10 10 10 10 Most Carried 10 | 4 10 10 10 10 10 10 10 10 10 10 Average Carried 9 | 1 8 9 9 9 8 9 9 9 9 9 Final Capacity 10 | 8 10 10 10 10 10 10 10 10 10 10 Final Carried 10 | 4 10 8 10 10 10 10 10 10 10 9 Class Distribution -------------------- 42% | Mutant 15% | Scavenger-Mutant 12% | Hacker-Mutant 10% | Scavenger-Sprinter 8% | Commander-Mutant 4% | Hacker-Sprinter 4% | Sprinter Dominant Class ---------------- Mutant | -10/Materials Scavenger-Mutant | -10/Mines Mutant | -10/Exiles Mutant | -9/Mines Mutant | -8/Materials Mutant | -8/Garrison Mutant | -7/Factory Scavenger-Sprinter | -7/Garrison Scavenger-Sprinter | -7/Factory Hacker-Mutant | -7/Storage Resources | -11 -10 -10 -10 -9 -8 -8 -7 -7 -7 -7 ----------- Run | Yrd Mat Min Exi Min Mat Gar Fac Gar Fac Sto Matter Collected 6844 | 241 443 574 . 20 724 1386 1886 559 615 396 Remotely . | . . . . . . . . . . . Salvage Created 8243 | 191 378 820 . 146 581 1186 2971 125 1200 645 Parts 455 | 15 32 48 . 6 43 53 157 4 56 41 Haulers Intercepted 8 | . . . . . 2 . 4 . 1 1 Recyclers Shooed 6 | . 1 3 . . . . 2 . . . Parts Field Recycled . | . . . . . . . . . . . Retrieved Matter . | . . . . . . . . . . . Parts Self-Destructed . | . . . . . . . . . . . Prevented . | . . . . . . . . . . . Kills | -11 -10 -10 -10 -9 -8 -8 -7 -7 -7 -7 ------- Run | Yrd Mat Min Exi Min Mat Gar Fac Gar Fac Sto Combat Hostiles Destroyed 154 | . 6 4 . 6 19 31 53 3 18 14 Melee 10 | . . . . . . . 8 1 1 . Guns 28 | . 6 2 . 6 2 . . 1 7 4 Cannons 50 | . . 2 . . 9 25 13 1 . . AOE 66 | . . . . . 8 6 32 . 10 10 Classes Destroyed 21 | 2 6 2 . . 1 5 3 . 1 1 Worker 26 | . 4 6 . . 2 . 9 . 1 4 Builder 7 | . . 3 . . . . 3 . . 1 Tunneler 10 | 5 . 3 . . . . 2 . . . Hauler 8 | . . . . . 2 . 4 . 1 1 Recycler 19 | 1 1 6 . . . . 8 . 3 . Carrier 1 | . . . . . . . 1 . . . Mechanic 7 | . 1 . . . . . 4 . 2 . Operator 8 | . 1 . . . . . 4 . 1 2 Drone 1 | . . . . . . . . . . 1 Watcher 17 | . 1 . . . 3 1 7 . 4 1 Swarmer 28 | . 3 2 . 4 10 3 4 1 1 . Grunt 78 | . 3 . . 1 7 17 31 1 8 10 Brawler 4 | . . . . . . 1 3 . . . Duelist 7 | . . . . . . . 5 . 2 . Protector 4 | . . . . . . . 3 . 1 . Sentry 19 | . . 2 . . 2 4 2 1 4 4 Demolisher 1 | . . . . . . . . . 1 . Specialist 4 | . . . . . . 2 1 . 1 . Hunter 2 | . . . . . . 1 . . 1 . Programmer 7 | . . . . . . 2 5 . . . Behemoth 1 | . . . . . . 1 . . . . Best Kill Streak 12 | 4 4 4 . 3 5 5 12 1 9 9 Combat Bots Only 11 | . 3 2 . 3 5 5 11 1 8 5 Max Kills in Single Turn 7 | 2 2 1 . 1 3 3 7 1 4 5 Gunslinging 1 | . 1 . . . . . . . . . Exploded 5 | . . . . . 3 3 5 . 3 3 Melee 1 | . . . . . . . 1 1 1 . Uniques/NPCs Destroyed 1 | . . . . 1 . . . . . . YI-UF0 (-9/Mines) Combat | -11 -10 -10 -10 -9 -8 -8 -7 -7 -7 -7 -------- Run | Yrd Mat Min Exi Min Mat Gar Fac Gar Fac Sto Hostile Shots Fired 515 | . 21 24 . 2 35 84 220 5 79 45 Missed 202 | . 7 6 . . 8 27 97 1 41 15 Damage Taken 4791 | . 143 215 . 32 506 926 1799 112 789 269 Core 1061 | . 28 29 . 16 48 229 389 27 127 168 Absorbed by Shields . | . . . . . . . . . . . Redirected to Shielding 40 | . . . . . . . 40 . . . Regen/Repaired (Parts) 309 | . . . . . . . 309 . . . Core Remaining (%) 73 | 100 . . . 70 . 49 . . . . Volleys Fired 426 | 9 45 56 . . 46 86 105 13 48 18 Largest 2 | 2 2 2 . . 2 2 2 1 2 1 Hottest 105 | 60 60 62 . . 92 105 105 105 84 49 Shots Fired 727 | 18 89 112 . 22 100 140 140 13 63 30 Gun 305 | 18 89 82 . 22 14 . 1 2 54 23 Cannon 354 | . . 30 . . 80 131 107 6 . . Launcher 68 | . . . . . 6 9 32 5 9 7 Special . | . . . . . . . . . . . Kinetic 635 | 9 75 112 . 22 94 131 108 7 54 23 Thermal 24 | 9 14 . . . . . . 1 . . Explosive 68 | . . . . . 6 9 32 5 9 7 Electromagnetic . | . . . . . . . . . . . Robot Hit Streak 13 | 5 13 9 . 9 12 9 7 10 12 8 Robot Miss Streak 8 | 1 3 3 . 1 4 3 8 . 5 2 Penetration Max 1 | . . . . . . . . . 1 . Secondary Targets 2 | . 1 1 . . . . . . . . Max Gunslinging Chain 1 | . 1 1 . . . . . . . . Autonomous 58 | . . . . 22 15 . . . 9 12 Shots Hit Robots 476 | 10 57 68 . 18 54 75 125 6 40 23 Core Hits 411 | 7 20 28 . 6 31 54 168 3 60 34 Critical Kills 1 | . 1 . . . . . . . . . Critical Parts Destroyed 1 | . . 1 . . . . . . . . Critical Strikes 26 | . 1 2 . . 2 12 8 1 . . Destroy 2 | . 1 1 . . . . . . . . Blast 18 | . . 1 . . 2 12 3 . . . Impale 6 | . . . . . . . 5 1 . . Melee Attacks 155 | . . . . . . 7 111 26 9 2 Impact . | . . . . . . . . . . . Slashing . | . . . . . . . . . . . Piercing 155 | . . . . . . 7 111 26 9 2 Sneak Attacks 24 | . . . . . . . 18 1 4 1 Combat Hostiles 3 | . . . . . . . 2 1 . . Follow-up Attacks . | . . . . . . . . . . . Damage Inflicted 24059 | 142 728 1138 . 646 2150 3087 10241 251 3232 2444 Guns 4161 | 142 728 744 . 646 357 . 28 25 1045 446 Cannons 5214 | . . 394 . . 1206 1861 1694 59 . . Explosions 10796 | . . . . . 587 822 5687 . 1760 1940 Melee 3888 | . . . . . . 404 2832 167 427 58 Ramming . | . . . . . . . . . . . Kinetic 9164 | 53 606 1138 . 646 1563 1861 1722 84 1045 446 Thermal 1385 | 89 122 . . . . . 1174 . . . Explosive 9622 | . . . . . 587 822 4513 . 1760 1940 Electromagnetic . | . . . . . . . . . . . Impact . | . . . . . . . . . . . Slashing . | . . . . . . . . . . . Piercing 3888 | . . . . . . 404 2832 167 427 58 Highest Corruption 4 | . . . . . 3 4 3 3 4 4 Average Corruption 2 | . . . . . 2 3 1 3 3 4 Corruption Purged . | . . . . . . . . . . . Corruption Blocked 6 | . . . . . . . 6 . . . Effects 87 | . . . . . 12 31 13 14 9 8 Message Errors 27 | . . . . . 5 12 6 2 1 1 Matter Fused 14 | . . . . . 1 6 2 3 . 2 Heat Flow Errors 10 | . . . . . . 3 1 2 3 1 Energy Discharges 7 | . . . . . 1 . 2 1 2 1 Parts Rejected 3 | . . . . . . 1 . 1 . 1 Parts Fused 1 | . . . . . . . . 1 . . Data Loss (minor) 14 | . . . . . 4 5 1 2 2 . Data Loss (major) 5 | . . . . . . 1 1 2 . 1 Misfires 2 | . . . . . . 2 . . . . Alerts 2 | . . . . . . 1 . . . 1 Weapon Failures 2 | . . . . . 1 . . . 1 . Overload Shots . | . . . . . . . . . . . Overflow Damage 954 | . . 34 . . 122 37 638 48 23 52 Projectiles 145 | . . 34 . . 43 . 46 22 . . Explosions 359 | . . . . . 79 37 168 . 23 52 Melee 450 | . . . . . . . 424 26 . . Knockbacks 28 | . . 3 . . 12 6 7 . . . Impact . | . . . . . . . . . . . Kinetic 28 | . . 3 . . 12 6 7 . . . Secondary . | . . . . . . . . . . . Self-Inflicted Damage 254 | . . . . . . 27 81 50 96 . Shots 8 | . . . . . . 1 3 2 2 . Rammed . | . . . . . . . . . . . Targets Rammed . | . . . . . . . . . . . Kicked . | . . . . . . . . . . . Crushed . | . . . . . . . . . . . Highest Temperature 319 | . 12 26 . . 213 290 319 193 254 72 Average Temperature 73 | . 10 13 . . 74 75 71 47 103 27 Received Heat Transfer 1284 | . 57 96 . 9 216 246 414 36 117 93 Effects 4 | . . . . . . . 2 . 2 . Interference 4 | . . . . . . . 2 . 2 . Siege Activations . | . . . . . . . . . . . Robots Corrupted . | . . . . . . . . . . . Combat Hostiles . | . . . . . . . . . . . Parts Fried . | . . . . . . . . . . . Impact Corruptions . | . . . . . . . . . . . Robots Melted . | . . . . . . . . . . . Combat Hostiles . | . . . . . . . . . . . Parts Melted 5 | . . . . . 1 . . . . 4 Heat Transferred 1276 | 200 275 . . . . . 801 . . . Parts Sabotaged . | . . . . . . . . . . . Parts Stolen . | . . . . . . . . . . . Parts Stripped . | . . . . . . . . . . . Power Chain Reactions . | . . . . . . . . . . . Alert | -11 -10 -10 -10 -9 -8 -8 -7 -7 -7 -7 ------- Run | Yrd Mat Min Exi Min Mat Gar Fac Gar Fac Sto Peak Influence 3464 | 30 303 210 . 185 589 2115 3464 3160 2622 1929 Initial 2424 | . 19 65 . . 72 382 1110 2424 1659 1188 Average 1318 | 12 121 80 . 141 263 1284 1906 2836 2029 1620 Maximum Alert Level 5 | . 1 1 . . 2 5 5 5 5 5 Low Security (%) 24 | 100 82 97 . 100 42 . . . . . Level 1 5 | . 17 2 . . 34 2 . . . . Level 2 6 | . . . . . 23 26 . . . . Level 3 3 | . . . . . . 14 1 . . . Level 4 16 | . . . . . . 20 39 . . 27 Level 5 36 | . . . . . . 35 46 100 53 72 High Security 7 | . . . . . . . 12 . 46 . Max Security . | . . . . . . . . . . . Squads Dispatched 58 | . 4 1 . 1 5 . 28 . 11 8 Investigation 16 | . 3 1 . 1 1 . 8 . 1 1 Extermination 5 | . . . . . . . 4 . 1 . Reinforcement 8 | . 1 . . . 2 . 2 . 1 2 Assault 23 | . . . . . . . 14 . 8 1 Garrison 6 | . . . . . 2 . . . . 4 Intercept . | . . . . . . . . . . . Searches Triggered . | . . . . . . . . . . . Construction Impeded . | . . . . . . . . . . . Haulers Reinforced 1 | . . . . . . . . . . 1 Active Scanning Responses . | . . . . . . . . . . . Cargo Convoy Interrupts 1 | . . . . . . . 1 . . . Stealth | -11 -10 -10 -10 -9 -8 -8 -7 -7 -7 -7 --------- Run | Yrd Mat Min Exi Min Mat Gar Fac Gar Fac Sto Distress Signals 16 | . 1 1 . . 2 5 1 . 2 4 Communications Jammed 1 | . . . . . . . 1 . . . Distress Signals . | . . . . . . . . . . . Times Spotted 302 | . 20 9 . 8 24 39 108 16 42 36 Peak Tracking Total 14 | . 4 3 . 3 3 7 14 4 13 8 Tactical Retreats 22 | . 1 1 . . 3 3 11 . . 3 Traps | -11 -10 -10 -10 -9 -8 -8 -7 -7 -7 -7 ------- Run | Yrd Mat Min Exi Min Mat Gar Fac Gar Fac Sto Traps Triggered 15 | . 1 . . . 2 1 4 5 2 . Indirectly . | . . . . . . . . . . . Trap Hack Attempts . | . . . . . . . . . . . Triggered . | . . . . . . . . . . . Disarmed . | . . . . . . . . . . . Reprogrammed 7 | . . . . . . . 7 . . . Reused 6 | . . 4 . . . . 2 . . . Traps Extracted . | . . . . . . . . . . . Installed 5 | . . 5 . . . . . . . . Triggered 7 | . . 4 . . . . 3 . . . Most Traps Carried 3 | . . 3 . . . . . . . . Machines | -11 -10 -10 -10 -9 -8 -8 -7 -7 -7 -7 ---------- Run | Yrd Mat Min Exi Min Mat Gar Fac Gar Fac Sto Machines Disabled 59 | . . . . . 1 15 19 8 5 11 Max in Single Turn 5 | . . . . . . 1 5 1 1 2 Garrison Relay 11 | . . . . . . 7 . 4 . . Phase Generator 1 | . . . . . . 1 . . . . Machines Repaired . | . . . . . . . . . . . Machines Dismantled . | . . . . . . . . . . . Machines Sabotaged . | . . . . . . . . . . . Overloaded Fab Kills . | . . . . . . . . . . . Hacking | -11 -10 -10 -10 -9 -8 -8 -7 -7 -7 -7 --------- Run | Yrd Mat Min Exi Min Mat Gar Fac Gar Fac Sto Machines Accessed 65 | . 8 1 5 1 6 4 31 2 3 4 Terminals 40 | . 7 1 . . 5 4 17 2 1 3 Fabricators 4 | . . . . . . . 3 . 1 . Repair Stations 7 | . 1 . . . . . 6 . . . Recycling Units 2 | . . . . . . . 2 . . . Scanalyzers 3 | . . . . . . . 2 . 1 . Garrison Access 3 | . . . . . 1 . 1 . . 1 Total Hacks 208 | . 21 3 50 1 18 7 78 4 15 11 Successful 117 | . 7 . 50 1 7 3 34 1 11 3 Failed 89 | . 13 3 . . 10 4 44 3 4 8 Catastrophic 22 | . 4 1 . . 2 3 10 1 1 . Database Lockouts 2 | . 1 . . . 1 . . . . . Manual 47 | . 15 3 1 . 14 3 5 3 . 3 Terminals 100 | . 19 3 . . 17 7 40 4 2 8 Fabricators 20 | . . . . . . . 10 . 10 . Repair Stations 14 | . 2 . . . . . 12 . . . Recycling Units 2 | . . . . . . . 2 . . . Scanalyzers 15 | . . . . . . . 12 . 3 . Garrison Access 6 | . . . . . 1 . 2 . . 3 Terminal Hacks 81 | . 7 . 50 1 6 3 11 1 . 2 Record 49 | . . . 49 . . . . . . . Robot Schematic 1 | . . . . . . . 1 . . . Robot Analysis 8 | . 5 . . . 3 . . . . . Prototype ID Bank 4 | . 1 . . . 2 . 1 . . . Open Door 3 | . . . . 1 . . . . . 2 Open DSF 1 | . . . . . . . 1 . . . Branch Access Points 1 | . . . . . . . 1 . . . Machine Index 1 | . . . . . . . 1 . . . Terminal Index 2 | . . . . . 1 . 1 . . . Reprogram Traps 2 | . . . . . . . 2 . . . Recall Reinforcements 1 | . . . . . . . 1 . . . Zone Layout 3 | . 1 . . . . . 2 . . . Garrison Registry 2 | . . . . . . 1 . 1 . . Patrol Navigation 1 | . . . . . . 1 . . . . Security Stations 1 | . . . . . . 1 . . . . Derelict Proto ID Bank 1 | . . . 1 . . . . . . . Fabricator Hacks 15 | . . . . . . . 6 . 9 . Network Status 1 | . . . . . . . . . 1 . Load Schematic 7 | . . . . . . . 3 . 4 . Build 7 | . . . . . . . 3 . 4 . Repair Station Hacks 7 | . . . . . . . 7 . . . Scan Component 4 | . . . . . . . 4 . . . Repair 3 | . . . . . . . 3 . . . Recycling Unit Hacks 2 | . . . . . . . 2 . . . Retrieve Components 2 | . . . . . . . 2 . . . Scanalyzer 9 | . . . . . . . 7 . 2 . Insert Component 5 | . . . . . . . 4 . 1 . Analyze 4 | . . . . . . . 3 . 1 . Garrison Access Hacks 3 | . . . . . 1 . 1 . . 1 Unlock Access 3 | . . . . . 1 . 1 . . 1 Unauthorized Hacks . | . . . . . . . . . . . Terminals . | . . . . . . . . . . . Fabricators . | . . . . . . . . . . . Repair Stations . | . . . . . . . . . . . Recycling Units . | . . . . . . . . . . . Scanalyzers . | . . . . . . . . . . . Garrison Access . | . . . . . . . . . . . Data Cores Recovered 2 | . . . . . . . 2 . . . Used 1 | . . . . . . . 1 . . . Hacking Detections 51 | . 8 1 . . 5 3 27 1 3 3 Full Trace Events 16 | . 4 1 . . 1 1 7 . 1 1 Feedback Events 1 | . . . . . . 1 . . . . Corruption 1 | . . . . . . 1 . . . . Feedback Blocked . | . . . . . . . . . . . Robot Schematics Acquired 1 | . . . . . . . 1 . . . Robots Built 14 | . . . . . . . 6 . 8 . Authchips 4 | . . . . . . . . . 4 . Time 406 | . . . . . . . 174 . 232 . Total Robot Build Rating 42 | . . . . . . . 18 . 24 . Part Schematics Acquired 4 | . . . . . . . 3 . 1 . Parts Built . | . . . . . . . . . . . Authchips . | . . . . . . . . . . . Time . | . . . . . . . . . . . Total Part Build Rating . | . . . . . . . . . . . Parts Repaired 3 | . . . . . . . 3 . . . Time 154 | . . . . . . . 154 . . . Parts Recycled . | . . . . . . . . . . . Recycled Matter . | . . . . . . . . . . . Retrieved Matter . | . . . . . . . . . . . Retrieved Components 13 | . . . . . . . 13 . . . Parts Scanalyzed 5 | . . . . . . . 4 . 1 . Part Schematics Acquired 4 | . . . . . . . 3 . 1 . Parts Damaged . | . . . . . . . . . . . Bothacking | -11 -10 -10 -10 -9 -8 -8 -7 -7 -7 -7 ------------ Run | Yrd Mat Min Exi Min Mat Gar Fac Gar Fac Sto Used RIF Installer . | . . . . . . . . . . . Robots Hacked . | . . . . . . . . . . . Non-combat . | . . . . . . . . . . . Combat . | . . . . . . . . . . . Robot Hacks Applied . | . . . . . . . . . . . Relay Couplers Released 47 | . . . . . . 27 4 16 . . Machine Destruction 40 | . . . . . . 24 . 16 . . Programmers 7 | . . . . . . 3 4 . . . Fabnet Peak Effective % . | . . . . . . . . . . . Robots Rewired 7 | . . . . . . 7 . . . . Allies Hacked . | . . . . . . . . . . . Hacks Repelled . | . . . . . . . . . . . Allies | -11 -10 -10 -10 -9 -8 -8 -7 -7 -7 -7 -------- Run | Yrd Mat Min Exi Min Mat Gar Fac Gar Fac Sto Total Allies 39 | . . 4 . . . 9 6 2 8 10 Largest Group 10 | . . 4 4 3 3 6 4 2 8 10 Highest-Rated Group 224 | . . 71 71 40 40 224 94 190 190 173 Highest-Rated Ally 95 | . . 31 31 16 16 40 40 95 95 29 Total Orders 31 | . . . . . . . . . 18 13 STAY 7 | . . . . . . . . . 7 . FOLLOW 11 | . . . . . . . . . 11 . EXPLORE 13 | . . . . . . . . . . 13 Ally Attacks 323 | . . 5 . 8 36 55 42 21 74 82 Total Damage 6265 | . . 65 . 82 352 1010 877 1129 1693 1057 Kills 63 | . . 2 . 1 4 11 11 9 15 10 Allies Corrupted . | . . . . . . . . . . . Allies Melted . | . . . . . . . . . . . Intel | -11 -10 -10 -10 -9 -8 -8 -7 -7 -7 -7 ------- Run | Yrd Mat Min Exi Min Mat Gar Fac Gar Fac Sto Robot Analysis Total 8 | . 5 . . . 3 . . . . . Derelict Logs Recovered 2 | . . 1 . 1 . . . . . . Drone Launches 31 | . . . . . . . . . . 31 Drone Recoveries 15 | . . . . . . . . . . 15 Exploration | -11 -10 -10 -10 -9 -8 -8 -7 -7 -7 -7 ------------- Run | Yrd Mat Min Exi Min Mat Gar Fac Gar Fac Sto Turns Passed 8671 | 79 524 999 357 236 740 1541 2484 718 564 429 Spaces Moved 11138 | 43 454 970 405 251 788 1585 4274 1281 893 194 Core 62 | 3 . . . . . . 2 . 5 52 Treads . | . . . . . . . . . . . Legs . | . . . . . . . . . . . Wheels 2120 | 40 454 970 405 251 . . . . . . Hover 2670 | . . . . . 788 1470 270 . . 142 Flight 6286 | . . . . . . 115 4002 1281 888 . Fastest Speed 27 | 50 80 80 80 80 45 37 28 27 27 50 Average Speed 48 | 85 80 80 80 80 52 50 35 27 30 145 Slowest Speed 240 | 100 95 80 80 80 126 200 120 106 150 240 Overloaded Moves . | . . . . . . . . . . . Propulsion Burnouts . | . . . . . . . . . . . Robots Hopped 29 | . . . . . . . 23 . 6 . Cave-ins Triggered . | . . . . . . . . . . . Exploration Rate (%) 65 | 3 69 90 89 59 50 93 82 81 15 90 Regions Visited 10 Branch Regions 4 Pre-discovered Areas 2 | . . . 1 1 . . . . . . Known Exits Taken 3 | . . . . . 1 . 1 . 1 . Unknown Exits Taken 5 | 1 1 1 1 1 . . . . . . Scrap Searched 3 | . . 2 . 1 . . . . . . Spaces Dug 52 | . . . . . . . 42 8 1 1 Terrain Destroyed 886 | . . 4 . 16 82 139 333 67 81 164 Melee 32 | . . . . . . . 29 1 1 1 Projectile 86 | . . 4 . 16 28 7 10 . 9 12 AOE 768 | . . . . . 54 132 294 66 71 151 Terrain Rammed . | . . . . . . . . . . . Walls Destroyed . | . . . . . . . . . . . Machines Disabled . | . . . . . . . . . . . Actions | -11 -10 -10 -10 -9 -8 -8 -7 -7 -7 -7 --------- Run | Yrd Mat Min Exi Min Mat Gar Fac Gar Fac Sto Total 13513 | 63 527 1087 439 287 1027 2164 4890 1589 1113 327 Wait 1043 | . 9 24 29 29 146 320 228 102 94 62 Move 11073 | 42 453 969 404 250 787 1584 4228 1280 882 194 Hop 26 | . . . . . . . 22 . 4 . Pick Up 83 | 2 6 10 . 4 9 10 21 17 4 . Fast Attach 79 | 8 4 2 1 . 3 11 23 10 10 7 Attach 74 | . . . . . 9 7 20 7 14 17 Detach 61 | 1 2 . 2 . 2 5 17 3 11 18 Swap 122 | 1 2 4 1 . 16 25 45 18 10 . Drop 121 | . 6 17 2 4 9 15 34 23 9 2 Fire 426 | 9 45 56 . . 46 86 105 13 48 18 Melee 155 | . . . . . . 7 111 26 9 2 Ram . | . . . . . . . . . . . Kick . | . . . . . . . . . . . Crush . | . . . . . . . . . . . Escape Stasis 155 | . . . . . . 11 36 90 18 . Rewire 83 | . . . . . . 83 . . . . Trap 5 | . . 5 . . . . . . . . Miscellaneous 7 | . . . . . . . . . . 7 Route ------- -11/Scrapyard -10/Materials (discovered 4 exits: [*Mat x2] / *Min x2) -10/Mines (discovered 4 exits: [*Mat x2] / *Exi / Sub) -10/Exiles -9/Mines -8/Materials (discovered 2 exits: *Fac / Gar) -8/Garrison (discovered 3 exits: *Fac x3) -7/Factory (discovered 8 exits: *Fac x3 / *Sto x2 / *Low x2 / Gar) -7/Garrison (discovered 3 exits: *Fac x3) -7/Factory -7/Storage (discovered 2 exits: *Fac / Gar) History --------- Turn | Location | Event 7 | -11/Scrapyard | Discovered new exit (range 16) 80 | -11/Scrapyard | Entered Materials 205 | -10/Materials | Discovered new exit (range 12) 308 | -10/Materials | Build established: Mutant 308 | -10/Materials | Discovered new exit (range 16) 547 | -10/Materials | Discovered new exit (range 15) 549 | -10/Materials | Central database locked down 592 | -10/Materials | Discovered new exit (range 16) 604 | -10/Materials | Entered Mines 769 | -10/Mines | Discovered new exit (range 14) 803 | -10/Mines | Deemed a non-threat by the Exiles lab entrance 803 | -10/Mines | Discovered new exit (range 5) 1007 | -10/Mines | A weapon hastily lodged in a ceiling crevice suddenly fell to the ground 1127 | -10/Mines | Found a hidden stash of uninstalled traps 1214 | -10/Mines | Discovered new exit (range 5) 1280 | -10/Mines | Received a Rocket Launcher from a helpful Derelict 1342 | -10/Mines | Build established: Scavenger-Mutant 1345 | -10/Mines | Identified exit to Subcaves 1368 | -10/Mines | Assisted by bots powering up and referring to "LRC-V3" 1507 | -10/Mines | Received a Mining Laser from a helpful Derelict 1603 | -10/Mines | Entered Exiles 1603 | -10/Exiles | Accompanied by 4 allies 1623 | -10/Exiles | Met 8R-AWN 1638 | -10/Exiles | Met EX-HEX 1660 | -10/Exiles | Met EX-BIN 1670 | -10/Exiles | Aligned with FarCom system 1671 | -10/Exiles | Given EX-Vault access code 1702 | -10/Exiles | Opened EX-Vault 1710 | -10/Exiles | Found AWS/Gauss 1729 | -10/Exiles | Warned to stay clear of 0b10 Research branches 1752 | -10/Exiles | Met EX-DEC 1757 | -10/Exiles | Learned location of Zion (-6) 1818 | -10/Exiles | Visited The Gauntlet 1924 | -10/Exiles | Discovered new exit (range 14) 1960 | -10/Exiles | Left Exiles lab with AWS/Gauss 1960 | -10/Exiles | Entered Mines 1960 | -9/Mines | Accompanied by 3 allies 1964 | -9/Mines | Met a Derelict shopkeep closing up shop 2015 | -9/Mines | Build established: Mutant 2099 | -9/Mines | Discovered new exit (range 9) 2113 | -9/Mines | Destroyed YI-UF0 2196 | -9/Mines | Entered Materials 2196 | -8/Materials | Accompanied by 3 allies 2196 | -8/Materials | Evolved 4 slots: Propulsion x2, Utility x2 2708 | -8/Materials | Discovered new exit (range 16) 2819 | -8/Materials | Garrison activated, responded to threat 2904 | -8/Materials | Identified exit to Garrison 2921 | -8/Materials | Central database locked down 2936 | -8/Materials | Entered Garrison 2982 | -8/Garrison | Garrison Relay disabled 3014 | -8/Garrison | Discovered new exit (range 12) 3032 | -8/Garrison | Triggered checkpoint 3046 | -8/Garrison | Discovered new exit (range 78) 3046 | -8/Garrison | Discovered new exit (range 47) 3046 | -8/Garrison | Discovered new exit (range 15) 3051 | -8/Garrison | Garrison Relay disabled 3121 | -8/Garrison | Spotted B-75 Beast 3218 | -8/Garrison | Destroyed B-75 Beast 3468 | -8/Garrison | Triggered checkpoint 3474 | -8/Garrison | Triggered checkpoint 3486 | -8/Garrison | Rescued a captive Derelict 3491 | -8/Garrison | Rescued a captive Derelict 3568 | -8/Garrison | Triggered checkpoint 3576 | -8/Garrison | Garrison Relay disabled 3615 | -8/Garrison | Phase Generator disabled 3672 | -8/Garrison | Triggered checkpoint 3708 | -8/Garrison | Triggered checkpoint 3708 | -8/Garrison | Garrison Relay disabled 3852 | -8/Garrison | P-60 Hacker assimilated allied Marksman 3c 3872 | -8/Garrison | Garrison Relay disabled 3904 | -8/Garrison | Triggered checkpoint 3932 | -8/Garrison | Triggered checkpoint 3951 | -8/Garrison | Garrison Relay disabled 4026 | -8/Garrison | Learned Factory security intel 4092 | -8/Garrison | Triggered checkpoint 4112 | -8/Garrison | Garrison Relay disabled 4130 | -8/Garrison | Core integrity fell below 50% 4205 | -8/Garrison | Build established: Scavenger-Mutant 4316 | -8/Garrison | Identified exit to Factory 4416 | -8/Garrison | Triggered checkpoint 4477 | -8/Garrison | Entered Factory 4477 | -7/Factory | Accompanied by 4 allies 4477 | -7/Factory | Evolved 2 slots: Utility x2 4637 | -7/Factory | Build established: Commander-Mutant 4767 | -7/Factory | Repaired Enh. Gauss Cannon 4807 | -7/Factory | Identified exit to DSF 4877 | -7/Factory | First assault squad dispatched 5088 | -7/Factory | Lost 4 allies 5153 | -7/Factory | Identified exit to Storage 5153 | -7/Factory | Identified exit to Lower Caves 5282 | -7/Factory | Discovered new exit (range 13) 5530 | -7/Factory | Build established: Mutant 5537 | -7/Factory | Discovered new exit (range 12) 5675 | -7/Factory | Identified exit to Garrison 5813 | -7/Factory | Fabricated H-55 Commando? 5838 | -7/Factory | Fabricated H-55 Commando? 5910 | -7/Factory | Build established: Hacker-Mutant 6176 | -7/Factory | Discovered new exit (range 7) 6230 | -7/Factory | Identified exit to Factory 6238 | -7/Factory | Cargo convoy interrupted 6267 | -7/Factory | Fabricated H-55 Commando? 6336 | -7/Factory | Repaired Mic. Fission Core? 6376 | -7/Factory | Destroyed 11 combat bots 6593 | -7/Factory | Build established: Hacker-Sprinter 6633 | -7/Factory | Repaired Enh. Nuclear Core 6643 | -7/Factory | High security lockdown imminent 6723 | -7/Factory | High security lockdown engaged 6899 | -7/Factory | Core integrity fell below 50% 6961 | -7/Factory | Entered Garrison 6961 | -7/Garrison | Warlord forces raided the area 6963 | -7/Garrison | Warlord forces retreated 6980 | -7/Garrison | Triggered checkpoint 6982 | -7/Garrison | Triggered checkpoint 7031 | -7/Garrison | Lost 5 allies 7073 | -7/Garrison | Discovered new exit (range 13) 7088 | -7/Garrison | Triggered checkpoint 7089 | -7/Garrison | Garrison Relay disabled 7156 | -7/Garrison | Discovered new exit (range 8) 7162 | -7/Garrison | Discovered new exit (range 87) 7162 | -7/Garrison | Discovered new exit (range 51) 7162 | -7/Garrison | Discovered new exit (range 6) 7167 | -7/Garrison | Garrison Relay disabled 7170 | -7/Garrison | Triggered checkpoint 7293 | -7/Garrison | Found embedded Infiltrators 7298 | -7/Garrison | Triggered checkpoint 7320 | -7/Garrison | Garrison Relay disabled 7342 | -7/Garrison | Triggered checkpoint 7396 | -7/Garrison | Triggered checkpoint 7420 | -7/Garrison | Garrison Relay disabled 7440 | -7/Garrison | Build established: Scavenger-Sprinter 7679 | -7/Garrison | Entered Factory 7679 | -7/Factory | Accompanied by 2 allies 7784 | -7/Factory | Fabricated H-55 Commando (x2) 7845 | -7/Factory | Fabricated H-55 Commando? 7907 | -7/Factory | Fabricated H-55 Commando? 7939 | -7/Factory | Discovered exit to Storage (range 14) 7971 | -7/Factory | Fabricated H-55 Commando? 7978 | -7/Factory | High security lockdown imminent 8058 | -7/Factory | High security lockdown engaged 8189 | -7/Factory | Lost 4 allies 8193 | -7/Factory | Destroyed 8 combat bots 8195 | -7/Factory | Lost 5 parts (1p3n1w) 8243 | -7/Factory | Entered Storage 8254 | -7/Storage | Destroyed 7 combat bots 8259 | -7/Storage | Lost 3 allies 8272 | -7/Storage | Core integrity fell below 20% 8309 | -7/Storage | Assisted by bots powering up and referring to "LRC-V3" 8342 | -7/Storage | Identified exit to Garrison 8374 | -7/Storage | Lost 6 allies 8454 | -7/Storage | Garrison activated, responded to threat 8493 | -7/Storage | Build established: Hacker-Mutant 8558 | -7/Storage | Discovered exit to Factory (range 45) 8570 | -7/Storage | Lost 14 allies 8589 | -7/Storage | Found Prototype Launcher 8589 | -7/Storage | Identified Scatter Rocket Array 8643 | -7/Storage | First assault squad dispatched 8672 | -7/Storage | Destroyed by G-47 Trooper with Particle Gun Last Messages --------------- 08630_ K-01 Serf sends out distress signal. 08631_ G-47 Trooper destroyed. 08631_ Destroyed Lgt. Nuclear Core. 08631_ Destroyed Imp. Heat Sink. 08631_ Component Storage disabled. 08631_ Storage Shell breached. 08633_ G-47 Trooper destroyed. 08634_ The unstable cave ceiling collapses. 08639_ Acquired 30 matter. 08641_ The unstable cave ceiling collapses. 08643_ ALERT: Significant disruption in Zone 6F, assault force dispatched. 08643_ Acquired Imp. Hover Unit. 08644_ Dropped Drone Bay. 08644_ >> Lost connection to Drone. 08662_ System corrupted: IFF burst signal emitted. 08662_ Connecting with Terminal... 08668_ C-30 ARC bursts open, deploying its payload. 08668_ G-50 Soldier unfolds itself. 08668_ B-48 Gladiator unfolds itself. 08668_ M-28 Smith unfolds itself. Map ----- +----------------------------------------------------+ | | | | | | | | | | | | | | | | | | | | | | | | | | | | | ????????????????????????????????? | | ????????????????????????????????? | | ????????????????????????????????? | | ????????????????????????????????? | | ?????#####????????#?????????????? | | ?????# ########Y#?##########??? | | ?????# < # !#?# #### | | ?????# # #?# "" # | | ?????# # #?# ==!"""# | | ?????# # """" #?# =!! R"? | | ????## + """" #?# =!!""?? | | ????#T @# """" #?# #??? | | ????## # """" #?# #??? | | ?????# # #?# #??? | | ?????# # #?# #??? | | ?????# w################/####??? | | ?????# #[ ##### ###### | | ?????# # % / + | | ?????# # ##### # """" | | ?????# gY# % #???# # """" | | ?????# mgb%b """ #???# # """" | | ?????# #""T" """ ##### # | | ?????# # """ """ ## " "" | | ?????# # ## "" | | ?????# ### ####### * # "" | | ???####+######?????? % | | ???# "T" ########### [ % + | | ???# " % | | # "" # """"" | | #""" # "?][ | | #"R # "??" | | #""" """ # ""??" | | #""" """ # "???" ^ ^ | | #### """ # """"" ## ^ | | ???# # ## ^ " | | ?#############+###+##### T" | +----------------------------------------------------+ Best States ------------- Heat Dissipation 65 Energy Generation 18 Energy Capacity 300 Matter Stores 300 Matter Capacity 300 Sight Range 16 Terrain Scan Range 16 Terrain Scan Density 10 Jamming Range 14 Additional Mass Support 9 Armor Coverage 225 Propulsion Shielding 33 Evasion (%) 64 Melee Accuracy 6 Core Analysis 9 Armor Integrity Analysis 40 Force Boost 30 Offensive Hacking 20 Defensive Hacking 10 Authchip Count 4 Item Schematics ----------------- Enh. Nuclear Core | -7/Factory | Scanalyzed Enh. Gauss Cannon | -7/Factory | Scanalyzed Xenon Bombardment Thruster | -7/Factory | Scanalyzed Impulse Thruster | -7/Factory | Scanalyzed Robot Schematics ------------------ H-55 Commando | -7/Factory | Hacked Fabricated ------------ H-55 Commando | x2 | -7/Factory H-55 Commando | x2 | -7/Factory H-55 Commando | x2 | -7/Factory H-55 Commando | x2 | -7/Factory | Authchip H-55 Commando | x2 | -7/Factory | Authchip H-55 Commando | x2 | -7/Factory | Authchip H-55 Commando | x2 | -7/Factory | Authchip Alien Tech Used ----------------- None Achievements -------------- None Challenges ------------ None Game ------ Seed BattleHeatPod Manual? 0 Play Time 03:04:26 Cumulative 321.2 hours Start 2024.05.12 @ 12:44:09 End 2024.05.12 @ 18:17:12 Sessions 1 Manual Loads 0 Difficulty Rogue Special Mode None Game No. 124 Rogue 124 Adventurer 0 Explorer 0 Win Type - Total 2 Types 0/0/2/0/0/0/0/0/0 Lore% 67 Gallery% 76 Achievement% 60 Wizard Run 0 Options --------- Layout 0 ASCII 0 Keyboard 1 Movement Arrows Keybinds 0 Fullscreen 1 Font 12/Proggy Map View 83x54 Zoom Use 0% Tactical HUD 1 Map Filters NONE Filters NONE Steam 0 RUN: b05d00be-1f8b-4e08-9f46-0a813a0c79c9